fUSD/lending_fUSD_20260531
["ID","MTS","AMOUNT","RATE_DAILY","PERIOD"]
[423507112,1780175432000,-500.0,0.00013698,2]
[423507092,1780175432000,-5166.13820086,0.00013599,2]
[423507071,1780175432000,-2000.0,0.0001338,2]
[423507236,1780175433000,-815.21587511,0.00013699,2]
[423507228,1780175433000,-815.21587511,0.00013699,2]
[423507232,1780175433000,-815.21587511,0.00013699,2]
[423507230,1780175433000,-815.21587511,0.00013699,2]
[423507226,1780175433000,-815.21587511,0.00013699,2]
[423507224,1780175433000,-815.21587511,0.00013699,2]
[423507238,1780175433000,-815.21587511,0.00013699,2]
[423507240,1780175433000,-815.21587511,0.00013699,2]
[423507252,1780175433000,-815.21587511,0.00013699,2]
[423507249,1780175433000,-815.21587511,0.00013699,2]
[423507253,1780175433000,-815.21587511,0.00013699,2]
[423507251,1780175433000,-815.21587511,0.00013699,2]
[423507241,1780175433000,-815.21587511,0.00013699,2]
[423507234,1780175433000,-815.21587511,0.00013699,2]
[423507250,1780175433000,-815.21587511,0.00013699,2]
[423507215,1780175433000,-500.0,0.00013699,2]
[423507190,1780175433000,-500.0,0.00013698,2]
[423507217,1780175433000,-500.0,0.00013699,2]
[423507247,1780175433000,-815.21587511,0.00013699,2]
[423507186,1780175433000,-500.0,0.00013698,2]
[423507188,1780175433000,-500.0,0.00013698,2]
[423507200,1780175433000,-200.0,0.00013699,2]
[423507202,1780175433000,-500.0,0.00013699,2]
[423507192,1780175433000,-388.93769863,0.00013698,2]
[423507221,1780175433000,-815.21587511,0.00013699,2]
[423507211,1780175433000,-500.0,0.00013699,2]
[423507209,1780175433000,-500.0,0.00013699,2]
[423507197,1780175433000,-166.66,0.00013699,2]
[423507194,1780175433000,-150.40601128,0.00013698,2]
[423507207,1780175433000,-500.0,0.00013699,2]
[423507213,1780175433000,-500.0,0.00013699,2]
[423507219,1780175433000,-500.0,0.00013699,2]
[423507204,1780175433000,-214.8395245,0.00013699,2]
[423507243,1780175433000,-815.21587511,0.00013699,2]
[423507280,1780175433000,-815.21587511,0.00013699,2]
[423507248,1780175433000,-815.21587511,0.00013699,2]
[423507270,1780175433000,-815.21587511,0.00013699,2]
[423507274,1780175433000,-815.21587511,0.00013699,2]
[423507272,1780175433000,-815.21587511,0.00013699,2]
[423507271,1780175433000,-815.21587511,0.00013699,2]
[423507275,1780175433000,-815.21587511,0.00013699,2]
[423507273,1780175433000,-815.21587511,0.00013699,2]
[423507269,1780175433000,-815.21587511,0.00013699,2]
[423507276,1780175433000,-815.21587511,0.00013699,2]
[423507285,1780175433000,-757.42552068,0.00013699,2]
[423507281,1780175433000,-639.81150778,0.00013699,2]
[423507282,1780175433000,-175.40436733,0.00013699,2]
[423507283,1780175433000,-584.59563267,0.00013699,2]
[423507279,1780175433000,-815.21587511,0.00013699,2]
[423507284,1780175433000,-220.10132791,0.00013699,2]
[423507278,1780175433000,-815.21587511,0.00013699,2]
[423507268,1780175433000,-815.21587511,0.00013699,2]
[423507244,1780175433000,-815.21587511,0.00013699,2]
[423507267,1780175433000,-815.21587511,0.00013699,2]
[423507266,1780175433000,-815.21587511,0.00013699,2]
[423507245,1780175433000,-815.21587511,0.00013699,2]
[423507256,1780175433000,-815.21587511,0.00013699,2]
[423507255,1780175433000,-815.21587511,0.00013699,2]
[423507257,1780175433000,-815.21587511,0.00013699,2]
[423507254,1780175433000,-815.21587511,0.00013699,2]
[423507258,1780175433000,-815.21587511,0.00013699,2]
[423507246,1780175433000,-815.21587511,0.00013699,2]
[423507265,1780175433000,-815.21587511,0.00013699,2]
[423507263,1780175433000,-815.21587511,0.00013699,2]
[423507259,1780175433000,-815.21587511,0.00013699,2]
[423507260,1780175433000,-815.21587511,0.00013699,2]
[423507261,1780175433000,-815.21587511,0.00013699,2]
[423507262,1780175433000,-815.21587511,0.00013699,2]
[423507277,1780175433000,-815.21587511,0.00013699,2]
[423507264,1780175433000,-815.21587511,0.00013699,2]
[423507304,1780175437000,-804.69696058,0.00013699,2]
[423507308,1780175437000,-804.69696058,0.00013699,2]
[423507302,1780175437000,-804.69696058,0.00013699,2]
[423507298,1780175437000,-804.69696058,0.00013699,2]
[423507297,1780175437000,-804.69696058,0.00013699,2]
[423507294,1780175437000,-804.69696058,0.00013699,2]
[423507299,1780175437000,-804.69696058,0.00013699,2]
[423507301,1780175437000,-804.69696058,0.00013699,2]
[423507300,1780175437000,-804.69696058,0.00013699,2]
[423507295,1780175437000,-804.69696058,0.00013699,2]
[423507305,1780175437000,-804.69696058,0.00013699,2]
[423507296,1780175437000,-804.69696058,0.00013699,2]
[423507312,1780175437000,-804.69696058,0.00013699,2]
[423507293,1780175437000,-47.2714399,0.00013699,2]
[423507307,1780175437000,-804.69696058,0.00013699,2]
[423507306,1780175437000,-804.69696058,0.00013699,2]
[423507319,1780175437000,-838.75820759,0.00013699,2]
[423507315,1780175437000,-804.69696058,0.00013699,2]
[423507318,1780175437000,-838.75820759,0.00013699,2]
[423507317,1780175437000,-804.69696058,0.00013699,2]
[423507320,1780175437000,-838.75820759,0.00013699,2]
[423507316,1780175437000,-804.69696058,0.00013699,2]
[423507310,1780175437000,-804.69696058,0.00013699,2]
[423507311,1780175437000,-804.69696058,0.00013699,2]
[423507313,1780175437000,-804.69696058,0.00013699,2]
[423507309,1780175437000,-804.69696058,0.00013699,2]
[423507303,1780175437000,-804.69696058,0.00013699,2]
[423507314,1780175437000,-804.69696058,0.00013699,2]
[423507368,1780175438000,-221.87967195,0.00019143,2]
[423507365,1780175438000,-34592.70647941,0.00018746,2]
[423507362,1780175438000,-2000.0,0.0001784,2]
[423507372,1780175438000,-151.0,0.00019535,2]
[423507360,1780175438000,-832.0,0.00017546,2]
[423507358,1780175438000,-14546.44500031,0.0001725,2]
[423507349,1780175438000,-832.0,0.00016084,2]
[423507356,1780175438000,-30318.3069035,0.00016734,2]
[423507351,1780175438000,-2000.0,0.00016354,2]
[423507348,1780175438000,-701.53,0.00016024,2]
[423507352,1780175438000,-163.29,0.00016604,2]
[423507359,1780175438000,-34592.70647941,0.00017335,2]
[423507366,1780175438000,-5166.13820077,0.00018807,2]
[423507364,1780175438000,-173.99832511,0.000182,2]
[423507373,1780175438000,-151.0,0.00019535,2]
[423507367,1780175438000,-448.03000316,0.00019139,2]
[423507370,1780175438000,-3785.88,0.00019512,2]
[423507353,1780175438000,-6483.2882208,0.00016734,2]
[423507361,1780175438000,-163.29,0.0001779,2]
[423507363,1780175438000,-173.99832511,0.00018,2]
[423507369,1780175438000,-1124.0,0.00019295,2]
[423507375,1780175438000,-151.0,0.00019535,2]
[423507383,1780175438000,-151.0,0.00019535,2]
[423507378,1780175438000,-151.0,0.00019535,2]
[423507381,1780175438000,-151.0,0.00019535,2]
[423507380,1780175438000,-151.0,0.00019535,2]
[423507377,1780175438000,-151.0,0.00019535,2]
[423507371,1780175438000,-250.0,0.00019512,2]
[423507357,1780175438000,-36985.987319,0.00016734,2]
[423507347,1780175438000,-11779.01,0.0001599,2]
[423507350,1780175438000,-5166.13820077,0.00016203,2]
[423507376,1780175438000,-151.0,0.00019535,2]
[423507324,1780175438000,-838.75820758,0.00013699,2]
[423507323,1780175438000,-838.75820759,0.00013699,2]
[423507322,1780175438000,-838.75820759,0.00013699,2]
[423507321,1780175438000,-838.75820759,0.00013699,2]
[423507325,1780175438000,-188.79,0.00013721,2]
[423507335,1780175438000,-832.0,0.00014622,2]
[423507328,1780175438000,-166.66,0.00013933,2]
[423507326,1780175438000,-188.79,0.0001379,2]
[423507333,1780175438000,-163.29,0.00014232,2]
[423507330,1780175438000,-2500.0,0.00013971,2]
[423507329,1780175438000,-3785.88,0.00013937,2]
[423507331,1780175438000,-177.19,0.00014007,2]
[423507332,1780175438000,-166.66,0.00014167,2]
[423507334,1780175438000,-166.66,0.00014401,2]
[423507336,1780175438000,-166.66,0.00014635,2]
[423507343,1780175438000,-151.0,0.00015567,2]
[423507337,1780175438000,-2000.0,0.00014867,2]
[423507340,1780175438000,-10400.25,0.00015453,2]
[423507339,1780175438000,-163.29,0.00015418,2]
[423507341,1780175438000,-1000.0,0.00015503,2]
[423507344,1780175438000,-6503.42,0.00015589,2]
[423507342,1780175438000,-152.0,0.00015567,2]
[423507338,1780175438000,-166.66,0.00014869,2]
[423507345,1780175438000,-150.95663103,0.00015683,2]
[423507346,1780175438000,-34592.70647944,0.00015924,2]
[423507354,1780175438000,-233.2055193,0.00016734,2]
[423507355,1780175438000,-39494.6780459,0.00016734,2]
[423507327,1780175438000,-150.0,0.00013921,2]
[423507374,1780175438000,-151.0,0.00019535,2]
[423507385,1780175438000,-151.0,0.00019535,2]
[423507415,1780175438000,-156.0,0.00021,2]
[423507411,1780175438000,-1551.0,0.00020514,2]
[423507417,1780175438000,-322.0,0.00021,2]
[423507422,1780175438000,-208.83818787,0.00021349,2]
[423507414,1780175438000,-2899.32,0.00020986,2]
[423507418,1780175438000,-153.0,0.00021,2]
[423507421,1780175438000,-335.63675924,0.00021254,2]
[423507419,1780175438000,-631.0,0.00021,2]
[423507434,1780175438000,-2500000.0,0.00021468,2]
[423507424,1780175438000,-518.66214636,0.00021368,2]
[423507428,1780175438000,-10653.8560092,0.00021368,2]
[423507431,1780175438000,-5166.13820077,0.00021411,2]
[423507429,1780175438000,-1634.28686208,0.00021368,2]
[423507425,1780175438000,-345.62642954,0.00021368,2]
[423507427,1780175438000,-200.68565705,0.00021368,2]
[423507430,1780175438000,-1124.0,0.0002138,2]
[423507426,1780175438000,-1393.4393142,0.00021368,2]
[423507432,1780175438000,-151.0,0.00021465,2]
[423507433,1780175438000,-151.0,0.00021465,2]
[423507437,1780175438000,-34592.70647941,0.00021567,2]
[423507436,1780175438000,-166.26,0.000215,2]
[423507439,1780175438000,-233.2055193,0.00021793,2]
[423507442,1780175438000,-36985.987319,0.00021793,2]
[423507438,1780175438000,-6483.2882208,0.00021793,2]
[423507440,1780175438000,-39494.6780459,0.00021793,2]
[423507441,1780175438000,-30318.3069035,0.00021793,2]
[423507382,1780175438000,-151.0,0.00019535,2]
[423507423,1780175438000,-10294.6743,0.00021368,2]
[423507413,1780175438000,-14546.44500031,0.00020901,2]
[423507435,1780175438000,-600.0,0.00021468,2]
[423507420,1780175438000,-156.0,0.00021,2]
[423507384,1780175438000,-151.0,0.00019535,2]
[423507412,1780175438000,-261.6,0.00020529,2]
[423507379,1780175438000,-151.0,0.00019535,2]
[423507387,1780175438000,-151.0,0.00019535,2]
[423507394,1780175438000,-322.0,0.0002,2]
[423507395,1780175438000,-300.59673456,0.0002,2]
[423507389,1780175438000,-151.0,0.00019535,2]
[423507396,1780175438000,-153.0,0.0002,2]
[423507386,1780175438000,-151.0,0.00019535,2]
[423507390,1780175438000,-151.0,0.00019535,2]
[423507391,1780175438000,-151.0,0.00019535,2]
[423507388,1780175438000,-151.0,0.00019535,2]
[423507392,1780175438000,-156.0,0.0002,2]
[423507397,1780175438000,-631.0,0.0002,2]
[423507393,1780175438000,-223.0,0.0002,2]
[423507405,1780175438000,-10596.3,0.00020145,2]
[423507416,1780175438000,-223.0,0.00021,2]
[423507400,1780175438000,-299.99,0.00020145,7]
[423507402,1780175438000,-9999.99,0.00020145,2]
[423507410,1780175438000,-603.2226976,0.00020405,2]
[423507407,1780175438000,-34592.70647941,0.00020156,2]
[423507408,1780175438000,-1124.0,0.00020311,2]
[423507403,1780175438000,-6349.52,0.00020145,2]
[423507398,1780175438000,-156.0,0.0002,2]
[423507401,1780175438000,-4999.99,0.00020145,2]
[423507409,1780175438000,-151.0,0.00020381,2]
[423507399,1780175438000,-150.99,0.00020145,2]
[423507406,1780175438000,-9999.99,0.00020145,2]
[423507404,1780175438000,-999.99,0.00020145,2]
[423507478,1780175439000,-445.31,0.00024174,2]
[423507482,1780175439000,-210.86201537,0.00024203,4]
[423507481,1780175439000,-9560.0,0.00024174,2]
[423507479,1780175439000,-490.87,0.00024174,2]
[423507480,1780175439000,-258.79,0.00024174,2]
[423507484,1780175439000,-151.0,0.00024324,2]
[423507475,1780175439000,-156.0,0.00024,2]
[423507483,1780175439000,-160.48,0.00024273,2]
[423507486,1780175439000,-34592.70647941,0.00024389,2]
[423507485,1780175439000,-518.66214634,0.00024333,2]
[423507476,1780175439000,-1854.29,0.00024007,2]
[423507488,1780175439000,-301.5,0.00024574,2]
[423507477,1780175439000,-5166.13820077,0.00024015,2]
[423507491,1780175439000,-1000.0,0.00024658,2]
[423507501,1780175439000,-168.0,0.00025,2]
[423507487,1780175439000,-14546.44500031,0.00024552,2]
[423507492,1780175439000,-317.36,0.00024658,2]
[423507493,1780175439000,-424.15,0.00024658,2]
[423507489,1780175439000,-1854.29,0.00024607,2]
[423507494,1780175439000,-1124.0,0.00024874,2]
[423507496,1780175439000,-424.15,0.00024886,7]
[423507497,1780175439000,-758.0,0.00024978,5]
[423507495,1780175439000,-317.36,0.00024886,7]
[423507498,1780175439000,-235.0,0.00025,2]
[423507499,1780175439000,-337.0,0.00025,2]
[423507500,1780175439000,-638.0,0.00025,2]
[423507503,1780175439000,-606.0,0.00025082,2]
[423507474,1780175439000,-631.0,0.00024,2]
[423507490,1780175439000,-170.66,0.00024658,2]
[423507470,1780175439000,-223.0,0.00024,2]
[423507447,1780175439000,-322.0,0.00022,2]
[423507465,1780175439000,-1551.0,0.00023079,2]
[423507505,1780175439000,-644.2,0.00025193,7]
[423507449,1780175439000,-631.0,0.00022,2]
[423507448,1780175439000,-153.0,0.00022,2]
[423507443,1780175439000,-5000.0,0.00021918,2]
[423507446,1780175439000,-223.0,0.00022,2]
[423507445,1780175439000,-818.78,0.00021978,2]
[423507444,1780175439000,-419.52,0.00021978,2]
[423507450,1780175439000,-156.0,0.00022,2]
[423507452,1780175439000,-151.0,0.00022353,2]
[423507456,1780175439000,-224.49,0.0002244,2]
[423507457,1780175439000,-1385.42,0.00022466,2]
[423507453,1780175439000,-644.2,0.0002238,2]
[423507461,1780175439000,-322.0,0.00023,2]
[423507471,1780175439000,-322.0,0.00024,2]
[423507454,1780175439000,-4199.79,0.0002238,2]
[423507460,1780175439000,-223.0,0.00023,2]
[423507451,1780175439000,-151.0,0.00022203,4]
[423507458,1780175439000,-1124.0,0.00022505,2]
[423507455,1780175439000,-253.12,0.0002244,2]
[423507463,1780175439000,-631.0,0.00023,2]
[423507462,1780175439000,-153.0,0.00023,2]
[423507468,1780175439000,-1124.0,0.0002369,2]
[423507472,1780175439000,-166.26,0.00024,7]
[423507473,1780175439000,-161.8477614,0.00024,2]
[423507467,1780175439000,-200.0,0.00023287,2]
[423507469,1780175439000,-4199.79,0.00023914,7]
[423507464,1780175439000,-156.0,0.00023,2]
[423507466,1780175439000,-151.0,0.00023203,4]
[423507459,1780175439000,-34592.70647941,0.00022978,2]
[423507509,1780175439000,-606.0,0.00025637,2]
[423507548,1780175439000,-166.26,0.000275,7]
[423507502,1780175439000,-204.64,0.00025,2]
[423507536,1780175439000,-518.66214634,0.00027297,2]
[423507547,1780175439000,-1124.0,0.00027424,5]
[423507539,1780175439000,-300.0,0.00027397,2]
[423507544,1780175439000,-1074.08,0.000274,7]
[423507546,1780175439000,-1592.19,0.000274,14]
[423507545,1780175439000,-737.42,0.000274,7]
[423507541,1780175439000,-17199.29,0.00027397,10]
[423507543,1780175439000,-11943.95,0.00027397,10]
[423507542,1780175439000,-14332.74,0.00027397,10]
[423507540,1780175439000,-170.66,0.00027397,2]
[423507560,1780175439000,-211.57,0.00027725,7]
[423507558,1780175439000,-200.0,0.00027715,2]
[423507550,1780175439000,-183.241988,0.0002755,2]
[423507562,1780175439000,-791.18,0.00027734,30]
[423507549,1780175439000,-150.0,0.00027521,2]
[423507553,1780175439000,-200.0,0.0002767,2]
[423507557,1780175439000,-211.57,0.00027703,2]
[423507555,1780175439000,-200.0,0.0002767,2]
[423507551,1780175439000,-10000.0,0.00027593,2]
[423507559,1780175439000,-282.77,0.00027724,7]
[423507561,1780175439000,-742.24,0.00027734,30]
[423507554,1780175439000,-200.0,0.0002767,2]
[423507556,1780175439000,-282.77,0.00027702,2]
[423507564,1780175439000,-2839.02,0.00027737,30]
[423507566,1780175439000,-1774.83,0.00027744,30]
[423507567,1780175439000,-211.57,0.00027747,30]
[423507563,1780175439000,-3065.32,0.00027736,30]
[423507510,1780175439000,-445.31,0.00025786,2]
[423507552,1780175439000,-200.0,0.0002767,2]
[423507538,1780175439000,-1500.0,0.00027397,2]
[423507565,1780175439000,-396.52,0.00027742,30]
[423507532,1780175439000,-200.0,0.0002693,2]
[423507537,1780175439000,-606.0,0.00027301,4]
[423507506,1780175439000,-1854.29,0.00025207,2]
[423507507,1780175439000,-200.0,0.00025359,2]
[423507504,1780175439000,-166.55,0.00025089,2]
[423507520,1780175439000,-606.0,0.00026192,3]
[423507512,1780175439000,-258.79,0.00025786,2]
[423507513,1780175439000,-9560.0,0.00025786,2]
[423507522,1780175439000,-443.50107073,0.00026393,2]
[423507521,1780175439000,-151.0,0.00026296,2]
[423507514,1780175439000,-34592.70647941,0.00025799,2]
[423507517,1780175439000,-500.0,0.00026,2]
[423507511,1780175439000,-490.87,0.00025786,2]
[423507515,1780175439000,-1854.29,0.00025807,2]
[423507516,1780175439000,-166.26,0.000259,7]
[423507508,1780175439000,-4199.79,0.00025448,7]
[423507519,1780175439000,-200.0,0.00026145,2]
[423507526,1780175439000,-6483.2882208,0.00026853,2]
[423507534,1780175439000,-166.55,0.00027159,2]
[423507529,1780175439000,-30318.3069035,0.00026853,2]
[423507535,1780175439000,-34592.70647941,0.0002721,2]
[423507518,1780175439000,-1124.0,0.00026118,2]
[423507533,1780175439000,-4199.79,0.00026983,7]
[423507530,1780175439000,-36985.987319,0.00026853,2]
[423507523,1780175439000,-1854.29,0.00026407,2]
[423507531,1780175439000,-310.89679483,0.0002687,2]
[423507524,1780175439000,-5166.13820077,0.00026618,2]
[423507527,1780175439000,-233.2055193,0.00026853,2]
[423507528,1780175439000,-39494.6780459,0.00026853,2]
[423507525,1780175439000,-606.0,0.00026746,3]
[423507602,1780175440000,-791.18,0.00028015,2]
[423507600,1780175440000,-200.0,0.00028,7]
[423507599,1780175440000,-211.57,0.00027995,7]
[423507605,1780175440000,-2839.02,0.00028017,2]
[423507609,1780175440000,-152.0,0.00028024,7]
[423507601,1780175440000,-742.24,0.00028015,2]
[423507604,1780175440000,-211.57,0.00028017,30]
[423507606,1780175440000,-282.77,0.00028017,30]
[423507608,1780175440000,-1774.83,0.00028023,2]
[423507598,1780175440000,-282.77,0.00027994,7]
[423507603,1780175440000,-3065.32,0.00028016,2]
[423507610,1780175440000,-282.77,0.00028039,2]
[423507611,1780175440000,-211.57,0.0002804,2]
[423507613,1780175440000,-282.77,0.00028062,7]
[423507618,1780175440000,-211.57,0.00028107,2]
[423507612,1780175440000,-211.57,0.00028062,7]
[423507620,1780175440000,-211.71,0.0002813,7]
[423507621,1780175440000,-282.8,0.0002813,7]
[423507617,1780175440000,-2162.0,0.000281,7]
[423507619,1780175440000,-282.77,0.00028107,2]
[423507614,1780175440000,-644.2,0.00028082,7]
[423507615,1780175440000,-282.77,0.00028084,30]
[423507616,1780175440000,-211.57,0.00028085,30]
[423507590,1780175440000,-211.57,0.00027927,7]
[423507622,1780175440000,-742.24,0.00028156,30]
[423507607,1780175440000,-396.52,0.00028021,2]
[423507594,1780175440000,-152.0,0.00027968,7]
[423507578,1780175440000,-282.77,0.00027859,7]
[423507593,1780175440000,-211.57,0.0002795,30]
[423507623,1780175440000,-791.18,0.00028156,30]
[423507570,1780175440000,-211.57,0.0002777,2]
[423507574,1780175440000,-211.57,0.00027815,30]
[423507572,1780175440000,-282.77,0.00027792,7]
[423507575,1780175440000,-211.57,0.00027837,2]
[423507573,1780175440000,-282.77,0.00027814,30]
[423507569,1780175440000,-282.77,0.00027769,2]
[423507568,1780175440000,-282.77,0.00027747,30]
[423507571,1780175440000,-211.57,0.00027792,7]
[423507581,1780175440000,-791.18,0.00027874,7]
[423507576,1780175440000,-282.77,0.00027837,2]
[423507584,1780175440000,-396.52,0.00027881,7]
[423507596,1780175440000,-211.57,0.00027972,2]
[423507577,1780175440000,-606.0,0.00027856,4]
[423507582,1780175440000,-3065.32,0.00027876,7]
[423507583,1780175440000,-2839.02,0.00027877,7]
[423507586,1780175440000,-282.77,0.00027882,30]
[423507585,1780175440000,-211.57,0.00027882,30]
[423507579,1780175440000,-211.57,0.0002786,7]
[423507580,1780175440000,-742.24,0.00027874,7]
[423507592,1780175440000,-282.77,0.00027949,30]
[423507595,1780175440000,-152.0,0.00027968,7]
[423507591,1780175440000,-282.77,0.00027927,7]
[423507588,1780175440000,-282.77,0.00027904,2]
[423507589,1780175440000,-211.57,0.00027905,2]
[423507597,1780175440000,-282.77,0.00027972,2]
[423507587,1780175440000,-1774.83,0.00027883,7]
[423507624,1780175440000,-3065.32,0.00028157,30]
[423507632,1780175440000,-184.39423525,0.00028239,2]
[423507631,1780175440000,-158.80302725,0.00028239,2]
[423507657,1780175440000,-200.0,0.000285,2]
[423507662,1780175440000,-2839.02,0.00028579,30]
[423507661,1780175440000,-791.18,0.00028578,30]
[423507663,1780175440000,-396.52,0.0002858,30]
[423507659,1780175440000,-3065.32,0.00028578,30]
[423507658,1780175440000,-4199.79,0.00028517,7]
[423507664,1780175440000,-1774.83,0.00028581,30]
[423507660,1780175440000,-742.24,0.00028578,30]
[423507665,1780175440000,-200.0,0.000286,7]
[423507667,1780175440000,-34592.70647941,0.00028621,2]
[423507672,1780175440000,-150.0,0.00028716,2]
[423507669,1780175440000,-737.42,0.000287,7]
[423507666,1780175440000,-433.83,0.00028603,2]
[423507676,1780175440000,-2839.02,0.00028719,7]
[423507678,1780175440000,-1774.83,0.0002872,7]
[423507674,1780175440000,-742.24,0.00028718,7]
[423507679,1780175440000,-396.52,0.0002872,7]
[423507671,1780175440000,-150.0,0.00028716,2]
[423507668,1780175440000,-1074.08,0.000287,7]
[423507670,1780175440000,-150.0,0.00028716,2]
[423507675,1780175440000,-791.18,0.00028718,7]
[423507680,1780175440000,-500.0,0.00028726,8]
[423507673,1780175440000,-290.0,0.00028716,2]
[423507628,1780175440000,-200.0,0.000282,7]
[423507681,1780175440000,-500.0,0.00028726,8]
[423507682,1780175440000,-500.0,0.00028726,8]
[423507677,1780175440000,-3065.32,0.00028719,7]
[423507653,1780175440000,-2839.02,0.00028438,2]
[423507683,1780175440000,-500.0,0.00028726,8]
[423507654,1780175440000,-3065.32,0.00028438,2]
[423507655,1780175440000,-396.52,0.0002844,2]
[423507625,1780175440000,-2839.02,0.00028158,30]
[423507627,1780175440000,-1774.83,0.00028162,30]
[423507626,1780175440000,-396.52,0.00028161,30]
[423507629,1780175440000,-14546.44500031,0.00028203,2]
[423507630,1780175440000,-1551.0,0.00028207,120]
[423507634,1780175440000,-163.80829129,0.00028239,2]
[423507636,1780175440000,-181.77119438,0.0002824,2]
[423507635,1780175440000,-155.99826538,0.00028239,2]
[423507645,1780175440000,-396.52,0.00028301,7]
[423507639,1780175440000,-250.0,0.00028255,2]
[423507643,1780175440000,-3065.32,0.00028297,7]
[423507641,1780175440000,-742.24,0.00028296,7]
[423507633,1780175440000,-179.13799582,0.00028239,2]
[423507644,1780175440000,-2839.02,0.00028298,7]
[423507640,1780175440000,-151.0,0.00028267,2]
[423507637,1780175440000,-151.0,0.00028252,7]
[423507642,1780175440000,-791.18,0.00028296,7]
[423507647,1780175440000,-160.48,0.00028319,2]
[423507656,1780175440000,-1774.83,0.00028441,2]
[423507652,1780175440000,-791.18,0.00028437,2]
[423507648,1780175440000,-200.0,0.000284,20]
[423507651,1780175440000,-742.24,0.00028437,2]
[423507646,1780175440000,-1774.83,0.00028302,7]
[423507649,1780175440000,-1592.19,0.000284,14]
[423507650,1780175440000,-606.0,0.00028411,5]
[423507638,1780175440000,-1500000.0,0.00028255,2]
[423507726,1780175441000,-500.0,0.00028726,8]
[423507719,1780175441000,-500.0,0.00028726,2]
[423507727,1780175441000,-500.0,0.00028726,2]
[423507709,1780175441000,-500.0,0.00028726,8]
[423507717,1780175441000,-500.0,0.00028726,2]
[423507712,1780175441000,-155.23146421,0.00028726,8]
[423507711,1780175441000,-500.0,0.00028726,8]
[423507713,1780175441000,-500.0,0.00028726,2]
[423507710,1780175441000,-500.0,0.00028726,8]
[423507718,1780175441000,-500.0,0.00028726,2]
[423507722,1780175441000,-500.0,0.00028726,8]
[423507728,1780175441000,-500.0,0.00028726,8]
[423507720,1780175441000,-500.0,0.00028726,8]
[423507723,1780175441000,-500.0,0.00028726,2]
[423507725,1780175441000,-500.0,0.00028726,2]
[423507729,1780175441000,-500.0,0.00028726,2]
[423507731,1780175441000,-500.0,0.00028726,2]
[423507735,1780175441000,-500.0,0.00028726,2]
[423507736,1780175441000,-500.0,0.00028726,2]
[423507730,1780175441000,-350.0,0.00028726,8]
[423507732,1780175441000,-150.0,0.00028726,2]
[423507708,1780175441000,-394.82970576,0.00028726,8]
[423507738,1780175441000,-150.0,0.00028726,2]
[423507721,1780175441000,-500.0,0.00028726,2]
[423507705,1780175441000,-500.0,0.00028726,8]
[423507697,1780175441000,-150.0,0.00028726,8]
[423507715,1780175441000,-500.0,0.00028726,2]
[423507733,1780175441000,-500.0,0.00028726,2]
[423507692,1780175441000,-150.0,0.00028726,8]
[423507687,1780175441000,-150.0,0.00028726,8]
[423507689,1780175441000,-150.0,0.00028726,8]
[423507686,1780175441000,-500.0,0.00028726,8]
[423507684,1780175441000,-549.95591964,0.00028726,8]
[423507688,1780175441000,-500.0,0.00028726,8]
[423507691,1780175441000,-500.0,0.00028726,8]
[423507685,1780175441000,-500.0,0.00028726,8]